[Event "120th Taflfelag Reykjavik-A 2020"]
[Site "Reykjavik"]
[Date "2020.10.01"]
[Round "8.5"]
[White "Kjartansson, Gudmundur"]
[Black "Gretarsson, Helgi Ass"]
[Result "0-1"]
[ECO "D25"]
[WhiteElo "2466"]
[BlackElo "2401"]
[Annotator "ChessBase"]
[PlyCount "68"]
[EventDate "2020.09.13"]
[EventType "tourn"]
[EventCountry "ISL"]
[SourceTitle "playchess.com"]
[Source "ChessBase"]
[SourceQuality "1"]
[TimeControl "40/5400+15:1800+30"]

1. d4 {[%emt 0:00:00]} d5 {[%emt 0:00:12]} 2. c4 {[%emt 0:00:00]} dxc4 {[%emt 0:00:00]} 3. Nf3 {[%emt 0:00:00]} Nf6 {[%emt 0:09:03]} 4. e3 {[%emt 0:00:00]} Bg4 {[%emt 0:01:27]} 5. Bxc4 {[%emt 0:00:00]} e6 {[%emt 0:00:00]} 6. Qb3 {[%emt 0:03:28]} Bxf3 {[%emt 0:02:23]} 7. gxf3 {[%emt 0:00:00]} Qc8 {[%emt 0:00:00]} 8. Nc3 {[%emt 0:00:57]} a6 {[%emt 0:00:15]} 9. d5 {[%emt 0:08:08]} b5 {[%emt 0:01:51]} 10. Be2 {[%emt 0:00:20]} b4 {[%emt 0:26:22]} 11. dxe6 {[%emt 0:00:54]} bxc3 {[%emt 0:00:00]} 12. exf7+ {[%emt 0:00:00]} Kd8 {[%emt 0:00:00]} 13. e4 {[%emt 0:03:35]} Nbd7 {[%emt 0:14:25]} 14. bxc3 {[%emt 0:38:54]} Nc5 {[%emt 0:04:06]} 15. Qc4 {[%emt 0:00:18]} Qe6 {[%emt 0:03:11]} 16. Be3 {[%emt 0:00:35]} Qxc4 {[%emt 0:17:59]} 17. Bxc4 {[%emt 0:00:00]} Nfd7 {[%emt 0:00:20]} 18. O-O-O {[%emt 0:04:10]} Kc8 {[%emt 0:00:00]} 19. Rhg1 {[%emt 0:15:09]} Kb7 {[%emt 0:00:50]} 20. Bd5+ {[%emt 0:10:21]} c6 {[%emt 0:00:00]} 21. Be6 {[%emt 0:00:00]} Nxe6 {[%emt 0:00:39]} 22. Rxd7+ {[%emt 0:00:00]} Kc8 {[%emt 0:00:00]} 23. Rgd1 {[%emt 0:00:47]} Ba3+ {[%emt 0:00:16]} 24. Kc2 {[%emt 0:00:00]} Rd8 {[%emt 0:00:00]} 25. Rxd8+ {[%emt 0:03:28]} Nxd8 {[%emt 0:00:00]} 26. e5 {[%emt 0:04:34]} Rb8 {[%emt 0:02:35]} 27. Bc1 {[%emt 0:00:23]} Bf8 {[%emt 0:00:18]} 28. f4 {[%emt 0:00:25]} Rb7 {[%emt 0:00:37]} 29. Rxd8+ {[%emt 0:00:16]} Kxd8 {[%emt 0:00:00]} 30. e6 {[%emt 0:00:00]} Rb5 {[%emt 0:01:46]} 31. Kd3 {[%emt 0:00:00]} Rf5 {[%emt 0:00:00]} 32. Ke4 {[%emt 0:00:00]} g6 {[%emt 0:00:00]} 33. c4 {[%emt 0:00:00]} c5 {[%emt 0:00:07]} 34. Bb2 {[%emt 0:00:29]} Ke7 {[%emt 0:09:48]} 0-1

[Event "120th Taflfelag Reykjavik-A 2020"]
[Site "Reykjavik"]
[Date "2020.10.01"]
[Round "8.9"]
[White "Johannsson, Birkir Isak"]
[Black "Hardarson, Petur Palmi"]
[Result "1/2-1/2"]
[ECO "E90"]
[WhiteElo "2146"]
[BlackElo "2061"]
[Annotator "ChessBase"]
[PlyCount "104"]
[EventDate "2020.09.13"]
[EventType "tourn"]
[EventCountry "ISL"]
[SourceTitle "playchess.com"]
[Source "ChessBase"]
[SourceQuality "1"]
[TimeControl "40/5400+15:1800+30"]

1. c4 {[%emt 0:00:00]} Nf6 {[%emt 0:02:32]} 2. Nc3 {[%emt 0:00:00]} g6 {[%emt 0:00:09]} 3. e4 {[%emt 0:00:00]} d6 {[%emt 0:00:00]} 4. d4 {[%emt 0:00:00]} Bg7 {[%emt 0:00:00]} 5. h3 {[%emt 0:00:00]} O-O {[%emt 0:00:00]} 6. Be3 {[%emt 0:00:00]} c6 {[%emt 0:01:09]} 7. Nf3 {[%emt 0:00:21]} e5 {[%emt 0:03:59]} 8. d5 {[%emt 0:00:29]} Na6 {[%emt 0:01:35]} 9. Nd2 {[%emt 0:01:51]} Bd7 {[%emt 0:10:39]} 10. Be2 {[%emt 0:02:54]} cxd5 {[%emt 0:01:17]} 11. cxd5 {[%emt 0:00:05]} Nc5 {[%emt 0:01:15]} 12. b4 {[%emt 0:07:10]} Na6 {[%emt 0:00:07]} 13. a3 {[%emt 0:00:34]} Nc7 {[%emt 0:06:17]} 14. O-O {[%emt 0:05:56]} Nfe8 {[%emt 0:04:11]} 15. Rc1 {[%emt 0:04:47]} f5 {[%emt 0:03:54]} 16. exf5 {[%emt 0:00:00]} gxf5 {[%emt 0:04:26]} 17. f4 {[%emt 0:04:10]} e4 {[%emt 0:12:14]} 18. Nb3 {[%emt 0:02:45]} a6 {[%emt 0:05:33]} 19. Nd4 {[%emt 0:08:25]} Rc8 {[%emt 0:03:19]} 20. a4 {[%emt 0:04:17]} Na8 {[%emt 0:05:52]} 21. a5 {[%emt 0:03:42]} Nac7 {[%emt 0:01:30]} 22. Qb3 {[%emt 0:01:03]} Qe7 {[%emt 0:02:56]} 23. Rc2 {[%emt 0:06:02]} Nf6 {[%emt 0:05:16]} 24. Rfc1 {[%emt 0:01:07]} Rfe8 {[%emt 0:02:52]} 25. Bc4 {[%emt 0:14:20]} Kh8 {[%emt 0:01:28]} 26. Kh2 {[%emt 0:03:00]} Nh5 {[%emt 0:00:54]} 27. Nce2 {[%emt 0:01:51]} Rg8 {[%emt 0:02:15]} 28. g3 {[%emt 0:00:05]} Bf6 {[%emt 0:00:54]} 29. b5 {[%emt 0:03:26]} axb5 {[%emt 0:03:01]} 30. Nxb5 {[%emt 0:00:49]} Na6 {[%emt 0:02:06]} 31. Na7 {[%emt 0:06:17]} Rb8 {[%emt 0:00:14]} 32. Bxa6 {[%emt 0:00:27]} bxa6 {[%emt 0:00:00]} 33. Bb6 {[%emt 0:00:00]} Rb7 {[%emt 0:01:55]} 34. Rc7 {[%emt 0:02:11]} Rxc7 {[%emt 0:00:35]} 35. Rxc7 {[%emt 0:00:00]} Qe8 {[%emt 0:01:43]} 36. Nc6 {[%emt 0:01:29]} e3 {[%emt 0:02:03]} 37. Qd3 {[%emt 0:04:08]} Qg6 {[%emt 0:00:26]} 38. Bd4 {[%emt 0:02:31]} Bxc6 {[%emt 0:00:10]} 39. Rxc6 {[%emt 0:01:20]} Bxd4 {[%emt 0:00:26]} 40. Qxd4+ {[%emt 0:00:00]} Ng7 {[%emt 0:00:00]} 41. Rc3 {[%emt 0:17:46]} Qe8 {[%emt 0:17:50]} 42. Rxe3 {[%emt 0:05:10]} Qb5 {[%emt 0:00:58]} 43. Re7 {[%emt 0:00:05]} Qxa5 {[%emt 0:00:44]} 44. Kg2 {[%emt 0:07:04]} Qd8 {[%emt 0:09:30]} 45. Qf6 {[%emt 0:01:10]} a5 {[%emt 0:02:12]} 46. Nd4 {[%emt 0:01:33]} Qa8 {[%emt 0:00:43]} 47. Qf7 {[%emt 0:01:21]} Qc8 {[%emt 0:00:59]} 48. h4 {[%emt 0:01:03]} Qc3 {[%emt 0:01:18]} 49. Ne6 {[%emt 0:00:58]} Qd2+ {[%emt 0:00:13]} 50. Kh3 {[%emt 0:00:36]} Qe1 {[%emt 0:00:11]} 51. Kg2 {[%emt 0:00:21]} Qe2+ {[%emt 0:00:07]} 52. Kg1 {[%emt 0:00:24]} Qe1+ {[%emt 0:00:07]} 1/2-1/2

[Event "120th Taflfelag Reykjavik-A 2020"]
[Site "Reykjavik"]
[Date "2020.10.01"]
[Round "8.10"]
[White "Briem, Benedikt"]
[Black "Mai, Alexander Oliver"]
[Result "1/2-1/2"]
[ECO "A49"]
[WhiteElo "1951"]
[BlackElo "2055"]
[Annotator "ChessBase"]
[PlyCount "226"]
[EventDate "2020.09.13"]
[EventType "tourn"]
[EventCountry "ISL"]
[SourceTitle "playchess.com"]
[Source "ChessBase"]
[SourceQuality "1"]
[TimeControl "40/5400+15:1800+30"]

1. Nf3 {[%emt 0:02:52]} Nf6 {[%emt 0:00:00]} 2. g3 {[%emt 0:00:00]} g6 {[%emt 0:00:00]} 3. Bg2 {[%emt 0:00:00]} Bg7 {[%emt 0:00:00]} 4. O-O {[%emt 0:00:00]} O-O {[%emt 0:00:00]} 5. d4 {[%emt 0:00:30]} c5 {[%emt 0:00:39]} 6. c3 {[%emt 0:02:22]} Qb6 {[%emt 0:04:14]} 7. Nbd2 {[%emt 0:02:58]} d5 {[%emt 0:06:48]} 8. Re1 {[%emt 0:04:48]} Nc6 {[%emt 0:01:37]} 9. Nb3 {[%emt 0:04:18]} cxd4 {[%emt 0:02:50]} 10. cxd4 {[%emt 0:00:17]} Ne4 {[%emt 0:00:59]} 11. Be3 {[%emt 0:01:26]} a5 {[%emt 0:02:20]} 12. Qc1 {[%emt 0:03:24]} a4 {[%emt 0:03:44]} 13. Nbd2 {[%emt 0:05:54]} Nd6 {[%emt 0:05:34]} 14. Rd1 {[%emt 0:06:56]} Nf5 {[%emt 0:08:46]} 15. Nf1 {[%emt 0:02:10]} Nfxd4 {[%emt 0:04:44]} 16. Nxd4 {[%emt 0:00:45]} Nxd4 {[%emt 0:00:18]} 17. Qd2 {[%emt 0:00:53]} e5 {[%emt 0:01:41]} 18. Bxd5 {[%emt 0:03:14]} Qb5 {[%emt 0:05:07]} 19. Bxd4 {[%emt 0:03:03]} exd4 {[%emt 0:00:20]} 20. Be4 {[%emt 0:00:57]} Re8 {[%emt 0:11:21]} 21. Bd3 {[%emt 0:00:20]} Qe5 {[%emt 0:06:23]} 22. Rac1 {[%emt 0:02:50]} Be6 {[%emt 0:02:57]} 23. a3 {[%emt 0:01:20]} Bb3 {[%emt 0:01:29]} 24. Re1 {[%emt 0:00:00]} Bd5 {[%emt 0:06:14]} 25. Rc2 {[%emt 0:03:57]} Bc6 {[%emt 0:01:14]} 26. Qb4 {[%emt 0:04:03]} Qd5 {[%emt 0:00:38]} 27. f3 {[%emt 0:00:22]} Bf8 {[%emt 0:02:39]} 28. Qb6 {[%emt 0:03:05]} Qe5 {[%emt 0:01:00]} 29. Rd1 {[%emt 0:05:46]} Rad8 {[%emt 0:03:25]} 30. Nd2 {[%emt 0:03:12]} Qe3+ {[%emt 0:01:00]} 31. Kg2 {[%emt 0:00:06]} Rd6 {[%emt 0:01:21]} 32. Qa5 {[%emt 0:02:21]} Rd5 {[%emt 0:00:14]} 33. Qb6 {[%emt 0:01:07]} Rh5 {[%emt 0:01:09]} 34. Rxc6 {[%emt 0:03:28]} bxc6 {[%emt 0:00:05]} 35. Ne4 {[%emt 0:00:43]} Re6 {[%emt 0:01:29]} 36. h4 {[%emt 0:04:03]} Rhe5 {[%emt 0:03:25]} 37. Qd8 {[%emt 0:02:03]} Kg7 {[%emt 0:00:19]} 38. Ng5 {[%emt 0:00:22]} Re8 {[%emt 0:01:24]} 39. Qd7 {[%emt 0:02:59]} R5e7 {[%emt 0:01:07]} 40. Qxc6 {[%emt 0:00:00]} Rb8 {[%emt 0:00:00]} 41. Rb1 {[%emt 0:18:03]} Rb3 {[%emt 0:23:43]} 42. Qxa4 {[%emt 0:06:07]} Reb7 {[%emt 0:06:28]} 43. Qc4 {[%emt 0:04:28]} R3b6 {[%emt 0:02:11]} 44. b4 {[%emt 0:01:47]} Qe5 {[%emt 0:00:13]} 45. f4 {[%emt 0:02:45]} Qd6 {[%emt 0:00:28]} 46. Nf3 {[%emt 0:01:53]} Rd7 {[%emt 0:00:29]} 47. Rc1 {[%emt 0:00:26]} Rbb7 {[%emt 0:00:31]} 48. Qc6 {[%emt 0:03:16]} Qxc6 {[%emt 0:00:19]} 49. Rxc6 {[%emt 0:00:09]} Ra7 {[%emt 0:00:16]} 50. Ne5 {[%emt 0:01:19]} Rdb7 {[%emt 0:00:45]} 51. Nc4 {[%emt 0:00:35]} Be7 {[%emt 0:00:26]} 52. Kh3 {[%emt 0:01:04]} f5 {[%emt 0:00:22]} 53. Kg2 {[%emt 0:00:58]} Bf8 {[%emt 0:01:04]} 54. h5 {[%emt 0:00:48]} Be7 {[%emt 0:00:38]} 55. hxg6 {[%emt 0:00:25]} hxg6 {[%emt 0:00:00]} 56. g4 {[%emt 0:00:42]} Rc7 {[%emt 0:00:37]} 57. Rxc7 {[%emt 0:02:07]} Rxc7 {[%emt 0:00:01]} 58. gxf5 {[%emt 0:00:27]} gxf5 {[%emt 0:00:01]} 59. b5 {[%emt 0:00:58]} Rb7 {[%emt 0:01:25]} 60. a4 {[%emt 0:00:09]} Bd8 {[%emt 0:00:42]} 61. Nd6 {[%emt 0:01:12]} Ra7 {[%emt 0:00:20]} 62. Nxf5+ {[%emt 0:01:15]} Kf6 {[%emt 0:00:01]} 63. Nxd4 {[%emt 0:00:49]} Bb6 {[%emt 0:00:20]} 64. Nc6 {[%emt 0:00:43]} Rxa4 {[%emt 0:00:09]} 65. f5 {[%emt 0:00:11]} Bc7 {[%emt 0:01:00]} 66. Kf3 {[%emt 0:00:34]} Bb6 {[%emt 0:01:09]} 67. Nb8 {[%emt 0:00:47]} Rd4 {[%emt 0:00:19]} 68. Be4 {[%emt 0:00:31]} Rd1 {[%emt 0:00:34]} 69. Bd3 {[%emt 0:00:16]} Rf1+ {[%emt 0:00:49]} 70. Ke4 {[%emt 0:00:39]} Bd8 {[%emt 0:00:16]} 71. Nd7+ {[%emt 0:00:16]} Ke7 {[%emt 0:00:06]} 72. Ne5 {[%emt 0:00:09]} Bc7 {[%emt 0:00:21]} 73. Kd5 {[%emt 0:00:40]} Rc1 {[%emt 0:00:27]} 74. Nc4 {[%emt 0:00:12]} Rc3 {[%emt 0:01:04]} 75. Kc6 {[%emt 0:00:58]} Bh2 {[%emt 0:00:47]} 76. b6 {[%emt 0:00:32]} Rb3 {[%emt 0:00:11]} 77. b7 {[%emt 0:00:39]} Bb8 {[%emt 0:00:28]} 78. Nb6 {[%emt 0:00:22]} Rc3+ {[%emt 0:00:08]} 79. Bc4 {[%emt 0:00:41]} Rc1 {[%emt 0:00:30]} 80. Nd5+ {[%emt 0:00:27]} Kd8 {[%emt 0:00:27]} 81. Kc5 {[%emt 0:00:45]} Ba7+ {[%emt 0:00:22]} 82. Kb4 {[%emt 0:00:04]} Kd7 {[%emt 0:00:56]} 83. e4 {[%emt 0:00:40]} Kc6 {[%emt 0:00:07]} 84. f6 {[%emt 0:00:41]} Bc5+ {[%emt 0:00:41]} 85. Kb3 {[%emt 0:00:13]} Rb1+ {[%emt 0:00:33]} 86. Kc3 {[%emt 0:00:34]} Kxb7 {[%emt 0:01:04]} 87. Nf4 {[%emt 0:00:30]} Rc1+ {[%emt 0:00:30]} 88. Kd3 {[%emt 0:00:25]} Rd1+ {[%emt 0:00:15]} 89. Ke2 {[%emt 0:00:15]} Rc1 {[%emt 0:00:31]} 90. Bd5+ {[%emt 0:00:09]} Kc8 {[%emt 0:00:20]} 91. Ne6 {[%emt 0:00:41]} Bd6 {[%emt 0:00:37]} 92. f7 {[%emt 0:00:20]} Kd7 {[%emt 0:00:42]} 93. f8=Q {[%emt 0:00:57]} Bxf8 {[%emt 0:00:04]} 94. Nxf8+ {[%emt 0:00:07]} Kd6 {[%emt 0:00:29]} 95. Ng6 {[%emt 0:00:36]} Rg1 {[%emt 0:00:16]} 96. Nf4 {[%emt 0:00:57]} Ke5 {[%emt 0:00:40]} 97. Nd3+ {[%emt 0:00:44]} Kd4 {[%emt 0:00:51]} 98. Ne1 {[%emt 0:00:31]} Rh1 {[%emt 0:00:26]} 99. Nf3+ {[%emt 0:00:12]} Kc5 {[%emt 0:00:06]} 100. Ke3 {[%emt 0:00:25]} Rd1 {[%emt 0:00:44]} 101. Be6 {[%emt 0:00:25]} Kd6 {[%emt 0:00:42]} 102. Bf5 {[%emt 0:00:19]} Ra1 {[%emt 0:00:25]} 103. Kf4 {[%emt 0:00:12]} Ra8 {[%emt 0:00:22]} 104. e5+ {[%emt 0:00:45]} Ke7 {[%emt 0:00:01]} 105. Ng5 {[%emt 0:00:51]} Rb8 {[%emt 0:00:33]} 106. Nf3 {[%emt 0:00:49]} Rf8 {[%emt 0:00:13]} 107. Nd4 {[%emt 0:00:22]} Ra8 {[%emt 0:01:03]} 108. Ke4 {[%emt 0:00:39]} Ra4 {[%emt 0:00:30]} 109. Bg6 {[%emt 0:00:22]} Ra6 {[%emt 0:00:25]} 110. Kf5 {[%emt 0:00:25]} Rb6 {[%emt 0:00:40]} 111. e6 {[%emt 0:00:20]} Rd6 {[%emt 0:00:49]} 112. Ke5 {[%emt 0:00:21]} Rxd4 {[%emt 0:00:08]} 113. Kxd4 {[%emt 0:00:12]} Kxe6 {[%emt 0:00:02]} 1/2-1/2

[Event "120th Taflfelag Reykjavik-A 2020"]
[Site "Reykjavik"]
[Date "2020.10.02"]
[Round "9.1"]
[White "Gretarsson, Helgi Ass"]
[Black "Gretarsson, Hjorvar Steinn"]
[Result "1/2-1/2"]
[ECO "E21"]
[WhiteElo "2401"]
[BlackElo "2579"]
[Annotator "ChessBase"]
[PlyCount "176"]
[EventDate "2020.09.13"]
[EventType "tourn"]
[EventCountry "ISL"]
[SourceTitle "playchess.com"]
[Source "ChessBase"]
[SourceQuality "1"]
[TimeControl "40/5400+15:1800+30"]

1. d4 {[%emt 0:00:00]} Nf6 {[%emt 0:00:00]} 2. c4 {[%emt 0:00:00]} e6 {[%emt 0:00:00]} 3. Nc3 {[%emt 0:00:00]} Bb4 {[%emt 0:00:00]} 4. e3 {[%emt 0:00:00]} O-O {[%emt 0:00:38]} 5. Bd2 {[%emt 0:00:00]} b6 {[%emt 0:02:14]} 6. Nf3 {[%emt 0:00:00]} Bb7 {[%emt 0:02:48]} 7. Bd3 {[%emt 0:02:06]} d6 {[%emt 0:03:39]} 8. O-O {[%emt 0:11:11]} Nbd7 {[%emt 0:03:06]} 9. a3 {[%emt 0:00:38]} Bxc3 {[%emt 0:00:00]} 10. Bxc3 {[%emt 0:00:00]} c5 {[%emt 0:04:01]} 11. b3 {[%emt 0:01:49]} Qe7 {[%emt 0:09:06]} 12. Nd2 {[%emt 0:07:37]} d5 {[%emt 0:20:43]} 13. Qc2 {[%emt 0:17:39]} e5 {[%emt 0:08:54]} 14. Rfe1 {[%emt 0:02:51]} Rfe8 {[%emt 0:06:08]} 15. cxd5 {[%emt 0:03:42]} cxd4 {[%emt 0:15:18]} 16. exd4 {[%emt 0:11:56]} Rac8 {[%emt 0:00:24]} 17. Nc4 {[%emt 0:04:21]} e4 {[%emt 0:06:43]} 18. Qd2 {[%emt 0:30:40]} Bxd5 {[%emt 0:01:01]} 19. Bb4 {[%emt 0:02:51]} Qd8 {[%emt 0:00:00]} 20. Bf1 {[%emt 0:08:55]} a5 {[%emt 0:00:00]} 21. Bd6 {[%emt 0:01:01]} a4 {[%emt 0:03:13]} 22. Qb4 {[%emt 0:00:49]} axb3 {[%emt 0:00:00]} 23. Ne3 {[%emt 0:01:02]} Nb8 {[%emt 0:03:03]} 24. Be5 {[%emt 0:01:52]} Nc6 {[%emt 0:03:03]} 25. Bxf6 {[%emt 0:00:00]} Qxf6 {[%emt 0:02:13]} 26. Nxd5 {[%emt 0:00:00]} Qg5 {[%emt 0:00:01]} 27. Qc4 {[%emt 0:12:26]} b2 {[%emt 0:00:00]} 28. Rab1 {[%emt 0:00:42]} Ne5 {[%emt 0:00:00]} 29. dxe5 {[%emt 0:00:21]} Rxc4 {[%emt 0:00:00]} 30. Bxc4 {[%emt 0:00:00]} Qxe5 {[%emt 0:00:00]} 31. a4 {[%emt 0:00:35]} Rc8 {[%emt 0:01:03]} 32. Ne3 {[%emt 0:00:00]} Qc3 {[%emt 0:00:00]} 33. g3 {[%emt 0:00:00]} h5 {[%emt 0:00:37]} 34. h4 {[%emt 0:00:23]} Rxc4 {[%emt 0:00:59]} 35. Nxc4 {[%emt 0:00:00]} Qxc4 {[%emt 0:00:00]} 36. Rxb2 {[%emt 0:00:00]} e3 {[%emt 0:00:40]} 37. fxe3 {[%emt 0:00:46]} Qg4 {[%emt 0:00:18]} 38. Kh2 {[%emt 0:00:31]} Qxa4 {[%emt 0:00:22]} 39. Rxb6 {[%emt 0:00:00]} Qc2+ {[%emt 0:00:00]} 40. Kg1 {[%emt 0:00:00]} Qc7 {[%emt 0:00:00]} 41. Rb4 {[%emt 0:16:32]} Qxg3+ {[%emt 0:17:39]} 42. Kf1 {[%emt 0:00:01]} Qf3+ {[%emt 0:01:32]} 43. Kg1 {[%emt 0:00:02]} g5 {[%emt 0:05:59]} 44. hxg5 {[%emt 0:00:34]} h4 {[%emt 0:00:26]} 45. Rb2 {[%emt 0:00:32]} Qg3+ {[%emt 0:00:13]} 46. Kf1 {[%emt 0:00:05]} h3 {[%emt 0:00:30]} 47. Ree2 {[%emt 0:00:07]} Kg7 {[%emt 0:00:59]} 48. Rf2 {[%emt 0:12:43]} Qxe3 {[%emt 0:03:28]} 49. Kg1 {[%emt 0:00:05]} Qg3+ {[%emt 0:00:15]} 50. Kh1 {[%emt 0:00:11]} Kg6 {[%emt 0:02:33]} 51. Rbe2 {[%emt 0:00:36]} Qc7 {[%emt 0:01:41]} 52. Rf3 {[%emt 0:02:33]} Kxg5 {[%emt 0:01:27]} 53. Rxh3 {[%emt 0:00:43]} Kg4 {[%emt 0:00:11]} 54. Rhe3 {[%emt 0:02:35]} f5 {[%emt 0:00:26]} 55. Rg2+ {[%emt 0:00:30]} Kf4 {[%emt 0:00:06]} 56. Ree2 {[%emt 0:00:32]} Qc3 {[%emt 0:01:57]} 57. Kh2 {[%emt 0:00:09]} Qh8+ {[%emt 0:01:57]} 58. Kg1 {[%emt 0:00:01]} Qd4+ {[%emt 0:00:36]} 59. Kf1 {[%emt 0:00:31]} Qd1+ {[%emt 0:00:21]} 60. Kf2 {[%emt 0:00:01]} Qc1 {[%emt 0:02:07]} 61. Rg3 {[%emt 0:01:15]} Qh1 {[%emt 0:00:39]} 62. Rb2 {[%emt 0:01:08]} Qe4 {[%emt 0:00:44]} 63. Rbb3 {[%emt 0:00:35]} Qc2+ {[%emt 0:00:12]} 64. Ke1 {[%emt 0:00:18]} Qc1+ {[%emt 0:00:23]} 65. Ke2 {[%emt 0:00:00]} Qc4+ {[%emt 0:00:16]} 66. Kf2 {[%emt 0:00:00]} Qc5+ {[%emt 0:00:48]} 67. Ke2 {[%emt 0:00:00]} Ke5 {[%emt 0:00:28]} 68. Rgc3 {[%emt 0:00:00]} Qa5 {[%emt 0:01:13]} 69. Re3+ {[%emt 0:01:11]} Kf6 {[%emt 0:00:02]} 70. Red3 {[%emt 0:00:34]} f4 {[%emt 0:00:35]} 71. Rdc3 {[%emt 0:00:41]} Kg5 {[%emt 0:00:15]} 72. Kd1 {[%emt 0:00:16]} Kg4 {[%emt 0:00:31]} 73. Ra3 {[%emt 0:00:19]} Qb4 {[%emt 0:00:44]} 74. Kc2 {[%emt 0:00:07]} Qe4+ {[%emt 0:00:04]} 75. Kd2 {[%emt 0:00:12]} Qb1 {[%emt 0:00:34]} 76. Ke2 {[%emt 0:00:57]} Qb5+ {[%emt 0:00:15]} 77. Kf2 {[%emt 0:00:16]} Qe5 {[%emt 0:00:50]} 78. Rcb3 {[%emt 0:00:12]} Qe4 {[%emt 0:00:14]} 79. Rc3 {[%emt 0:00:07]} Qd4+ {[%emt 0:00:17]} 80. Kf1 {[%emt 0:00:42]} Kf5 {[%emt 0:00:31]} 81. Rcb3 {[%emt 0:00:22]} Ke4 {[%emt 0:00:13]} 82. Rc3 {[%emt 0:00:04]} Qd1+ {[%emt 0:00:17]} 83. Kf2 {[%emt 0:00:04]} Qd2+ {[%emt 0:00:05]} 84. Kf1 {[%emt 0:00:03]} Qb2 {[%emt 0:01:19]} 85. Rcb3 {[%emt 0:00:04]} Qc1+ {[%emt 0:00:09]} 86. Kf2 {[%emt 0:00:04]} Qc2+ {[%emt 0:00:04]} 87. Kf1 {[%emt 0:00:04]} Qd1+ {[%emt 0:01:12]} 88. Kf2 {[%emt 0:00:21]} Qc2+ {[%emt 0:00:26]} 1/2-1/2

[Event "120th Taflfelag Reykjavik-A 2020"]
[Site "Reykjavik"]
[Date "2020.10.02"]
[Round "9.2"]
[White "Sigfusson, Sigurdur"]
[Black "Kjartansson, Gudmundur"]
[Result "1/2-1/2"]
[ECO "B72"]
[WhiteElo "2276"]
[BlackElo "2466"]
[Annotator "ChessBase"]
[PlyCount "166"]
[EventDate "2020.09.13"]
[EventType "tourn"]
[EventCountry "ISL"]
[SourceTitle "playchess.com"]
[Source "ChessBase"]
[SourceQuality "1"]
[TimeControl "40/5400+15:1800+30"]

1. e4 {[%emt 1:30:15]} c5 {[%emt 0:00:00]} 2. Nf3 {[%emt 0:00:00]} Nc6 {[%emt 0:00:00]} 3. d4 {[%emt 0:00:00]} cxd4 {[%emt 0:00:00]} 4. Nxd4 {[%emt 0:00:00]} Nf6 {[%emt 0:00:00]} 5. Nc3 {[%emt 0:00:00]} d6 {[%emt 0:00:00]} 6. h3 {[%emt 0:01:04]} g6 {[%emt 0:00:58]} 7. Be3 {[%emt 0:06:45]} Bg7 {[%emt 0:00:15]} 8. Bc4 {[%emt 0:08:55]} O-O {[%emt 0:00:05]} 9. Bb3 {[%emt 0:00:10]} Na5 {[%emt 0:06:38]} 10. O-O {[%emt 1:15:36]} b6 {[%emt 0:02:05]} 11. Qd2 {[%emt 0:12:01]} Bb7 {[%emt 0:01:09]} 12. f3 {[%emt 0:02:46]} Qc8 {[%emt 0:09:29]} 13. Bh6 {[%emt 0:04:19]} Bxh6 {[%emt 0:16:06]} 14. Qxh6 {[%emt 0:00:00]} Nc4 {[%emt 0:09:59]} 15. Bxc4 {[%emt 0:28:53]} Qxc4 {[%emt 0:00:02]} 16. Rad1 {[%emt 0:00:00]} a6 {[%emt 0:02:40]} 17. Rf2 {[%emt 0:01:30]} b5 {[%emt 0:00:09]} 18. Nce2 {[%emt 0:01:15]} Ne8 {[%emt 0:13:04]} 19. Ng3 {[%emt 0:05:54]} Ng7 {[%emt 0:00:37]} 20. f4 {[%emt 0:20:38]} Qc7 {[%emt 0:06:52]} 21. Rd3 {[%emt 0:02:22]} e5 {[%emt 0:02:42]} 22. Ngf5 {[%emt 0:00:41]} Ne8 {[%emt 0:05:01]} 23. fxe5 {[%emt 0:03:57]} dxe5 {[%emt 0:00:00]} 24. Ne6 {[%emt 0:01:57]} fxe6 {[%emt 0:00:00]} 25. Ne7+ {[%emt 0:00:00]} Qxe7 {[%emt 0:00:00]} 26. Rd7 {[%emt 0:00:00]} Rxf2 {[%emt 0:00:33]} 27. Rxe7 {[%emt 0:00:00]} Rf7 {[%emt 0:00:00]} 28. Rxe6 {[%emt 0:04:18]} Nf6 {[%emt 0:05:11]} 29. Rxe5 {[%emt 0:00:21]} Nxe4 {[%emt 0:00:42]} 30. Qe3 {[%emt 0:08:39]} Nf6 {[%emt 0:02:33]} 31. Re7 {[%emt 0:04:50]} Raf8 {[%emt 0:06:21]} 32. Rxf7 {[%emt 0:00:26]} Rxf7 {[%emt 0:00:00]} 33. Qe6 {[%emt 0:00:24]} Nd5 {[%emt 0:03:15]} 34. Qe8+ {[%emt 0:00:15]} Kg7 {[%emt 0:02:04]} 35. Qe5+ {[%emt 0:00:00]} Rf6 {[%emt 0:00:28]} 36. a4 {[%emt 0:00:00]} bxa4 {[%emt 0:00:35]} 37. c4 {[%emt 0:01:27]} Nf4 {[%emt 0:00:16]} 38. Qe7+ {[%emt 0:00:41]} Rf7 {[%emt 0:00:00]} 39. Qe5+ {[%emt 0:00:00]} Kh6 {[%emt 0:00:00]} 40. h4 {[%emt 0:00:00]} Rf5 {[%emt 0:00:00]} 41. Qe3 {[%emt 0:18:49]} Bxg2 {[%emt 0:32:45]} 42. Kh2 {[%emt 0:01:22]} Kh5 {[%emt 0:07:18]} 43. Kg3 {[%emt 0:00:12]} Bf1 {[%emt 0:01:00]} 44. c5 {[%emt 0:02:42]} Bb5 {[%emt 0:01:43]} 45. Qf3+ {[%emt 0:03:21]} Kh6 {[%emt 0:00:06]} 46. Qe3 {[%emt 0:00:18]} Rf6 {[%emt 0:03:30]} 47. Kg4 {[%emt 0:01:31]} Bd7+ {[%emt 0:01:23]} 48. Kg3 {[%emt 0:00:11]} Bc6 {[%emt 0:01:12]} 49. Kg4 {[%emt 0:00:33]} Bb5 {[%emt 0:00:58]} 50. Kg3 {[%emt 0:00:45]} Rf5 {[%emt 0:00:21]} 51. Kg4 {[%emt 0:01:03]} Kg7 {[%emt 0:00:55]} 52. Qe7+ {[%emt 0:02:55]} Kg8 {[%emt 0:00:12]} 53. Qd8+ {[%emt 0:01:35]} Rf8 {[%emt 0:00:05]} 54. Qd6 {[%emt 0:00:50]} Be2+ {[%emt 0:01:58]} 55. Kg3 {[%emt 0:00:13]} Nh5+ {[%emt 0:00:47]} 56. Kh2 {[%emt 0:01:37]} Rf2+ {[%emt 0:00:24]} 57. Kg1 {[%emt 0:00:12]} Rf1+ {[%emt 0:00:31]} 58. Kh2 {[%emt 0:00:41]} Rf2+ {[%emt 0:00:56]} 59. Kg1 {[%emt 0:02:30]} Rf1+ {[%emt 0:00:14]} 60. Kh2 {[%emt 0:00:04]} Bg4 {[%emt 0:01:07]} 61. c6 {[%emt 0:01:41]} Bc8 {[%emt 0:00:39]} 62. Qd4 {[%emt 0:01:15]} Rf4 {[%emt 0:00:30]} 63. Qd5+ {[%emt 0:00:26]} Kg7 {[%emt 0:00:31]} 64. Qe5+ {[%emt 0:00:12]} Kg8 {[%emt 0:00:09]} 65. Qd5+ {[%emt 0:00:20]} Rf7 {[%emt 0:00:06]} 66. Qd8+ {[%emt 0:00:35]} Rf8 {[%emt 0:00:02]} 67. Qd5+ {[%emt 0:00:17]} Kg7 {[%emt 0:00:03]} 68. Qe5+ {[%emt 0:00:43]} Nf6 {[%emt 0:00:11]} 69. Kg1 {[%emt 0:00:50]} Bf5 {[%emt 0:03:03]} 70. c7 {[%emt 0:00:34]} Kf7 {[%emt 0:00:39]} 71. Qc5 {[%emt 0:00:44]} Rc8 {[%emt 0:00:47]} 72. Qc4+ {[%emt 0:00:23]} Be6 {[%emt 0:00:24]} 73. Qxa6 {[%emt 0:00:12]} Rxc7 {[%emt 0:00:28]} 74. Qxa4 {[%emt 0:00:04]} Rc4 {[%emt 0:00:40]} 75. b4 {[%emt 0:00:26]} Rxh4 {[%emt 0:00:31]} 76. Qa7+ {[%emt 0:00:03]} Bd7 {[%emt 0:00:30]} 77. b5 {[%emt 0:00:16]} Ke6 {[%emt 0:00:28]} 78. Qb6+ {[%emt 0:01:28]} Kf7 {[%emt 0:00:34]} 79. Qa7 {[%emt 0:00:47]} Rg4+ {[%emt 0:00:13]} 80. Kf1 {[%emt 0:00:19]} Rf4+ {[%emt 0:00:36]} 81. Kg1 {[%emt 0:00:38]} Rg4+ {[%emt 0:00:36]} 82. Kf1 {[%emt 0:00:04]} Rf4+ {[%emt 0:00:04]} 83. Kg1 {[%emt 0:00:02]} Rg4+ {[%emt 0:00:47]} 1/2-1/2